[Event "Titled Tuesday Blitz July 26 Early 2022"]
[White "Ernst, Sipke"]
[Black "Melikyan, Gnel"]
[WhiteFideId "1004689"]
[BlackFideId "54109990"]
[WhiteElo "2436"]
[BlackElo "1772"]
[Result "1/2-1/2"]
[Round "10"]
[TimeControl "180+1"]
[Date "2022.07.26"]
[WhiteClock "0:01:22"]
[BlackClock "0:00:10"]

1. d4 {[%clk 0:03:00]}  d5 {[%clk 0:02:58]} 2. c4 {[%clk 0:03:00]}  dxc4 {[%clk 0:02:59]} 3. Nf3 {[%clk 0:03:00]}  Nf6 {[%clk 0:02:59]} 4. e3 {[%clk 0:03:00]}  e6 {[%clk 0:02:59]} 5. Bxc4 {[%clk 0:03:01]}  c5 {[%clk 0:03:00]} 6. O-O {[%clk 0:03:01]}  a6 {[%clk 0:03:00]} 7. dxc5 {[%clk 0:03:02]}  Qxd1 {[%clk 0:03:00]} 8. Rxd1 {[%clk 0:03:02]}  Bxc5 {[%clk 0:03:00]} 9. Be2 {[%clk 0:03:02]}  O-O {[%clk 0:02:59]} 10. Nbd2 {[%clk 0:03:02]}  Be7 {[%clk 0:02:57]} 11. b3 {[%clk 0:03:01]}  Nbd7 {[%clk 0:02:55]} 12. Bb2 {[%clk 0:03:01]}  b5 {[%clk 0:02:49]} 13. a4 {[%clk 0:03:00]}  bxa4 {[%clk 0:02:44]} 14. Rxa4 {[%clk 0:03:00]}  Bb7 {[%clk 0:02:44]} 15. Nc4 {[%clk 0:02:59]}  Nc5 {[%clk 0:02:41]} 16. Ra3 {[%clk 0:02:58]}  Rfd8 {[%clk 0:02:37]} 17. Nd4 {[%clk 0:02:51]}  Nd5 {[%clk 0:02:28]} 18. Na5 {[%clk 0:02:51]}  Rdb8 {[%clk 0:02:04]} 19. Raa1 {[%clk 0:02:44]}  Bf6 {[%clk 0:02:00]} 20. Nxb7 {[%clk 0:02:39]}  Rxb7 {[%clk 0:01:58]} 21. Ra3 {[%clk 0:02:31]}  Nxb3 {[%clk 0:01:47]} 22. Rxb3 {[%clk 0:02:24]}  Rxb3 {[%clk 0:01:47]} 23. Nxb3 {[%clk 0:02:24]}  Bxb2 {[%clk 0:01:48]} 24. Bf3 {[%clk 0:02:22]}  a5 {[%clk 0:01:44]} 25. Rb1 {[%clk 0:02:18]}  Bc3 {[%clk 0:01:33]} 26. Nc5 {[%clk 0:02:15]}  g6 {[%clk 0:01:27]} 27. Na4 {[%clk 0:02:14]}  Bb4 {[%clk 0:01:23]} 28. Bxd5 {[%clk 0:02:13]}  exd5 {[%clk 0:01:23]} 29. Rd1 {[%clk 0:02:14]}  Rc8 {[%clk 0:01:14]} 30. g4 {[%clk 0:02:13]}  Rc4 {[%clk 0:01:13]} 31. h3 {[%clk 0:02:11]}  Bc5 {[%clk 0:01:00]} 32. Rxd5 {[%clk 0:02:04]}  Bxe3 {[%clk 0:00:58]} 33. Rxa5 {[%clk 0:02:02]}  Rc1+ {[%clk 0:00:52]} 34. Kg2 {[%clk 0:02:02]}  Rc2 {[%clk 0:00:53]} 35. Kf3 {[%clk 0:01:57]}  Bxf2 {[%clk 0:00:52]} 36. Rd5 {[%clk 0:01:55]}  Bg1 {[%clk 0:00:41]} 37. Rd1 {[%clk 0:01:54]}  Bh2 {[%clk 0:00:35]} 38. Nb6 {[%clk 0:01:49]}  Kg7 {[%clk 0:00:34]} 39. Rd7 {[%clk 0:01:46]}  Be5 {[%clk 0:00:28]} 40. Rd5 {[%clk 0:01:41]}  Rc3+ {[%clk 0:00:26]} 41. Kg2 {[%clk 0:01:40]}  Bc7 {[%clk 0:00:23]} 42. Na8 {[%clk 0:01:34]}  Bf4 {[%clk 0:00:20]} 43. Rd4 {[%clk 0:01:31]}  g5 {[%clk 0:00:18]} 44. Nb6 {[%clk 0:01:27]}  Rg3+ {[%clk 0:00:18]} 45. Kf1 {[%clk 0:01:27]}  Rxh3 {[%clk 0:00:18]} 46. Nd5 {[%clk 0:01:28]}  Rf3+ {[%clk 0:00:17]} 47. Ke2 {[%clk 0:01:27]}  Rg3 {[%clk 0:00:11]} 48. Nxf4 {[%clk 0:01:27]}  gxf4 {[%clk 0:00:11]} 49. Rxf4 {[%clk 0:01:28]}  Kg6 {[%clk 0:00:11]} 50. Kf2 {[%clk 0:01:28]}  Rc3 {[%clk 0:00:11]} 51. Rf5 {[%clk 0:01:27]}  f6 {[%clk 0:00:10]} 52. Ra5 {[%clk 0:01:26]}  Rd3 {[%clk 0:00:10]} 53. Kg2 {[%clk 0:01:26]}  h6 {[%clk 0:00:10]} 54. Rb5 {[%clk 0:01:26]}  Re3 {[%clk 0:00:10]} 55. Rc5 {[%clk 0:01:26]}  Re5 {[%clk 0:00:11]} 56. Rc8 {[%clk 0:01:26]}  Kg5 {[%clk 0:00:11]} 57. Kf3 {[%clk 0:01:25]}  Ra5 {[%clk 0:00:09]} 58. Rg8+ {[%clk 0:01:24]}  Kh4 {[%clk 0:00:09]} 59. Rg6 {[%clk 0:01:25]}  f5 {[%clk 0:00:07]} 60. Rxh6+ {[%clk 0:01:24]}  Kg5 {[%clk 0:00:08]} 61. Rh5+ {[%clk 0:01:23]}  Kg6 {[%clk 0:00:08]} 62. Kg3 {[%clk 0:01:22]}  Ra3+ {[%clk 0:00:06]} 63. Kh4 {[%clk 0:01:21]}  fxg4 {[%clk 0:00:07]} 64. Rg5+ {[%clk 0:01:21]}  Kf6 {[%clk 0:00:07]} 65. Rxg4 {[%clk 0:01:22]}  Rf3 {[%clk 0:00:08]} 66. Rg3 {[%clk 0:01:21]}  Rf5 {[%clk 0:00:08]} 67. Kg4 {[%clk 0:01:21]}  Rg5+ {[%clk 0:00:09]} 68. Kf4 {[%clk 0:01:21]}  Rxg3 {[%clk 0:00:10]} 69. Kxg3 {[%clk 0:01:22]} 1/2-1/2


[Site "https://www.chess.com"]

[Event "Titled Tuesday Blitz July 26 Early 2022"]
[White "Ferreira, Vitor Hugo Vieira"]
[Black "Ansh M Shah"]
[WhiteFideId "2119765"]
[BlackFideId "25033379"]
[WhiteElo "2168"]
[BlackElo "1819"]
[Result "1-0"]
[Round "10"]
[TimeControl "180+1"]
[Date "2022.07.27"]
[WhiteClock "0:00:28"]
[BlackClock "0:00:07"]

1. e4 {[%clk 0:03:00]}  c6 {[%clk 0:02:58]} 2. d4 {[%clk 0:02:59]}  d5 {[%clk 0:02:59]} 3. exd5 {[%clk 0:02:59]}  cxd5 {[%clk 0:03:00]} 4. Bd3 {[%clk 0:02:59]}  Nc6 {[%clk 0:03:01]} 5. c3 {[%clk 0:02:59]}  Nf6 {[%clk 0:03:02]} 6. Bf4 {[%clk 0:02:57]}  g6 {[%clk 0:03:02]} 7. Ne2 {[%clk 0:02:54]}  Bg7 {[%clk 0:03:03]} 8. Ng3 {[%clk 0:02:53]}  O-O {[%clk 0:03:03]} 9. O-O {[%clk 0:02:53]}  Bg4 {[%clk 0:02:54]} 10. Qe1 {[%clk 0:02:48]}  Qb6 {[%clk 0:02:51]} 11. h3 {[%clk 0:02:37]}  Be6 {[%clk 0:02:24]} 12. Qe2 {[%clk 0:02:30]}  a6 {[%clk 0:02:07]} 13. Bc1 {[%clk 0:02:22]}  Rac8 {[%clk 0:02:05]} 14. f4 {[%clk 0:02:22]}  Bd7 {[%clk 0:01:54]} 15. f5 {[%clk 0:02:22]}  Rfe8 {[%clk 0:01:52]} 16. fxg6 {[%clk 0:02:21]}  hxg6 {[%clk 0:01:53]} 17. Kh2 {[%clk 0:02:14]}  e5 {[%clk 0:01:49]} 18. Bg5 {[%clk 0:02:13]}  exd4 {[%clk 0:01:11]} 19. Qf2 {[%clk 0:02:12]}  Ne5 {[%clk 0:01:12]} 20. Be2 {[%clk 0:01:58]}  Re6 {[%clk 0:00:46]} 21. cxd4 {[%clk 0:01:57]}  Nc4 {[%clk 0:00:40]} 22. Nc3 {[%clk 0:01:50]}  Rf8 {[%clk 0:00:19]} 23. Bxf6 {[%clk 0:01:34]}  Rxf6 {[%clk 0:00:19]} 24. Qxf6 {[%clk 0:01:35]}  Bxf6 {[%clk 0:00:19]} 25. Nxd5 {[%clk 0:01:36]}  Qxd4 {[%clk 0:00:17]} 26. Nxf6+ {[%clk 0:01:37]}  Kg7 {[%clk 0:00:16]} 27. Nxd7 {[%clk 0:01:37]}  Qxd7 {[%clk 0:00:16]} 28. Bxc4 {[%clk 0:01:37]}  b5 {[%clk 0:00:14]} 29. Bb3 {[%clk 0:01:36]}  Qd4 {[%clk 0:00:15]} 30. Rad1 {[%clk 0:01:34]}  Qxb2 {[%clk 0:00:15]} 31. Rd7 {[%clk 0:01:34]}  a5 {[%clk 0:00:15]} 32. Rfxf7+ {[%clk 0:01:31]}  Rxf7 {[%clk 0:00:15]} 33. Rxf7+ {[%clk 0:01:32]}  Kh6 {[%clk 0:00:16]} 34. Ne4 {[%clk 0:01:25]}  Qe5+ {[%clk 0:00:14]} 35. Ng3 {[%clk 0:01:24]}  a4 {[%clk 0:00:14]} 36. Bd1 {[%clk 0:01:23]}  Qd4 {[%clk 0:00:14]} 37. Be2 {[%clk 0:01:18]}  Qd5 {[%clk 0:00:13]} 38. Rf3 {[%clk 0:01:11]}  b4 {[%clk 0:00:11]} 39. Bd3 {[%clk 0:00:56]}  Qe5 {[%clk 0:00:10]} 40. Kh1 {[%clk 0:00:53]}  b3 {[%clk 0:00:09]} 41. axb3 {[%clk 0:00:53]}  a3 {[%clk 0:00:08]} 42. Bb1 {[%clk 0:00:48]}  Qa1 {[%clk 0:00:06]} 43. Rf1 {[%clk 0:00:48]}  a2 {[%clk 0:00:07]} 44. Bxa2 {[%clk 0:00:48]}  Qxa2 {[%clk 0:00:07]} 45. Rf3 {[%clk 0:00:48]}  Qb1+ {[%clk 0:00:07]} 46. Kh2 {[%clk 0:00:49]}  Qb2 {[%clk 0:00:07]} 47. Nf1 {[%clk 0:00:49]}  Qe5+ {[%clk 0:00:08]} 48. Kg1 {[%clk 0:00:47]}  Qc5+ {[%clk 0:00:07]} 49. Kh1 {[%clk 0:00:46]}  Qb5 {[%clk 0:00:08]} 50. h4 {[%clk 0:00:45]}  Kh5 {[%clk 0:00:08]} 51. Kh2 {[%clk 0:00:41]}  Kxh4 {[%clk 0:00:07]} 52. Rh3+ {[%clk 0:00:40]}  Kg5 {[%clk 0:00:07]} 53. Rg3+ {[%clk 0:00:39]}  Kh6 {[%clk 0:00:08]} 54. Ne3 {[%clk 0:00:39]}  Kh7 {[%clk 0:00:03]} 55. Ng4 {[%clk 0:00:38]}  Kg7 {[%clk 0:00:02]} 56. Re3 {[%clk 0:00:33]}  Qh5+ {[%clk 0:00:02]} 57. Kg3 {[%clk 0:00:33]}  Qg5 {[%clk 0:00:01]} 58. Kf3 {[%clk 0:00:33]}  Qf5+ {[%clk 0:00:01]} 59. Kg3 {[%clk 0:00:34]}  Qg5 {[%clk 0:00:02]} 60. Rd3 {[%clk 0:00:31]}  Qf5 {[%clk 0:00:02]} 61. Nf2 {[%clk 0:00:28]}  Qg5+ {[%clk 0:00:01]} 62. Kf3 {[%clk 0:00:28]}  Qf5+ {[%clk 0:00:02]} 63. Ke3 {[%clk 0:00:28]}  Qe5+ {[%clk 0:00:02]} 64. Ne4 {[%clk 0:00:28]}  Qf5 {[%clk 0:00:03]} 65. g3 {[%clk 0:00:27]}  Qf7 {[%clk 0:00:03]} 66. Nc5 {[%clk 0:00:25]}  Qa7 {[%clk 0:00:03]} 67. Rd7+ {[%clk 0:00:25]}  Qxd7 {[%clk 0:00:04]} 68. Nxd7 {[%clk 0:00:26]}  Kf7 {[%clk 0:00:04]} 69. b4 {[%clk 0:00:26]}  Ke6 {[%clk 0:00:05]} 70. Nf8+ {[%clk 0:00:25]}  Kf7 {[%clk 0:00:04]} 71. Nxg6 {[%clk 0:00:26]}  Kxg6 {[%clk 0:00:05]} 72. b5 {[%clk 0:00:26]}  Kg5 {[%clk 0:00:06]} 73. b6 {[%clk 0:00:27]}  Kg4 {[%clk 0:00:07]} 74. b7 {[%clk 0:00:28]} 1-0


[Site "https://www.chess.com"]

[Event "Titled Tuesday Blitz July 26 Early 2022"]
[White "Gardezi, Arsal"]
[Black "Kostiukov, Alexandr"]
[WhiteFideId "30949521"]
[BlackFideId "14108100"]
[WhiteElo "1781"]
[BlackElo "2202"]
[Result "1-0"]
[Round "10"]
[TimeControl "180+1"]
[Date "2022.07.27"]
[WhiteClock "0:00:10"]
[BlackClock "0:00:01"]

1. e4 {[%clk 0:02:50]}  c5 {[%clk 0:02:59]} 2. Nf3 {[%clk 0:02:47]}  g6 {[%clk 0:02:59]} 3. d4 {[%clk 0:02:46]}  cxd4 {[%clk 0:02:59]} 4. Nxd4 {[%clk 0:02:47]}  Bg7 {[%clk 0:03:00]} 5. Be3 {[%clk 0:02:47]}  Nc6 {[%clk 0:03:00]} 6. Nc3 {[%clk 0:02:42]}  Nf6 {[%clk 0:02:59]} 7. Nxc6 {[%clk 0:02:40]}  bxc6 {[%clk 0:02:58]} 8. e5 {[%clk 0:02:39]}  Ng8 {[%clk 0:02:53]} 9. f4 {[%clk 0:02:38]}  Nh6 {[%clk 0:02:53]} 10. Bd3 {[%clk 0:02:35]}  d5 {[%clk 0:02:53]} 11. exd6 {[%clk 0:02:33]}  exd6 {[%clk 0:02:53]} 12. O-O {[%clk 0:02:31]}  O-O {[%clk 0:02:52]} 13. Bf2 {[%clk 0:02:23]}  Ng4 {[%clk 0:02:49]} 14. Be2 {[%clk 0:02:15]}  Nxf2 {[%clk 0:02:25]} 15. Rxf2 {[%clk 0:02:15]}  Qb6 {[%clk 0:02:25]} 16. Na4 {[%clk 0:02:07]}  Qd4 {[%clk 0:02:17]} 17. c3 {[%clk 0:02:04]}  Qf6 {[%clk 0:01:58]} 18. Bf3 {[%clk 0:01:52]}  d5 {[%clk 0:01:42]} 19. Nc5 {[%clk 0:01:44]}  Rb8 {[%clk 0:01:18]} 20. Nd3 {[%clk 0:01:42]}  Bf5 {[%clk 0:01:15]} 21. Ne5 {[%clk 0:01:39]}  Qd6 {[%clk 0:01:12]} 22. g4 {[%clk 0:01:38]}  Be6 {[%clk 0:01:04]} 23. Qe1 {[%clk 0:01:22]}  Rfe8 {[%clk 0:00:57]} 24. Rd1 {[%clk 0:01:17]}  c5 {[%clk 0:00:47]} 25. Rfd2 {[%clk 0:01:03]}  d4 {[%clk 0:00:36]} 26. cxd4 {[%clk 0:01:01]}  Bxa2 {[%clk 0:00:36]} 27. dxc5 {[%clk 0:00:58]}  Qxc5+ {[%clk 0:00:36]} 28. Kg2 {[%clk 0:00:57]}  Bxe5 {[%clk 0:00:32]} 29. fxe5 {[%clk 0:00:57]}  Rxe5 {[%clk 0:00:32]} 30. Qh4 {[%clk 0:00:52]}  Rbe8 {[%clk 0:00:29]} 31. b4 {[%clk 0:00:42]}  Qc4 {[%clk 0:00:29]} 32. Rd4 {[%clk 0:00:40]}  Qb3 {[%clk 0:00:22]} 33. R1d3 {[%clk 0:00:31]}  Qc2+ {[%clk 0:00:22]} 34. Rd2 {[%clk 0:00:31]}  Qc3 {[%clk 0:00:21]} 35. R4d3 {[%clk 0:00:29]}  Qc4 {[%clk 0:00:21]} 36. Rd4 {[%clk 0:00:29]}  Qc3 {[%clk 0:00:20]} 37. Qf2 {[%clk 0:00:23]}  Be6 {[%clk 0:00:18]} 38. R2d3 {[%clk 0:00:19]}  Qc7 {[%clk 0:00:16]} 39. b5 {[%clk 0:00:16]}  Qb6 {[%clk 0:00:16]} 40. Bc6 {[%clk 0:00:16]}  Rf8 {[%clk 0:00:15]} 41. Rd2 {[%clk 0:00:16]}  Bc8 {[%clk 0:00:13]} 42. Qf6 {[%clk 0:00:15]}  Re6 {[%clk 0:00:12]} 43. Qf4 {[%clk 0:00:15]}  Rxc6 {[%clk 0:00:12]} 44. bxc6 {[%clk 0:00:14]}  Qxc6+ {[%clk 0:00:13]} 45. Qf3 {[%clk 0:00:15]}  Qxf3+ {[%clk 0:00:12]} 46. Kxf3 {[%clk 0:00:15]}  Be6 {[%clk 0:00:11]} 47. Kg3 {[%clk 0:00:14]}  a5 {[%clk 0:00:11]} 48. Rd8 {[%clk 0:00:11]}  a4 {[%clk 0:00:10]} 49. Rxf8+ {[%clk 0:00:11]}  Kxf8 {[%clk 0:00:11]} 50. Rd8+ {[%clk 0:00:11]}  Ke7 {[%clk 0:00:11]} 51. Ra8 {[%clk 0:00:12]}  Bb3 {[%clk 0:00:11]} 52. Kf4 {[%clk 0:00:12]}  f6 {[%clk 0:00:09]} 53. Ra7+ {[%clk 0:00:11]}  Kd6 {[%clk 0:00:08]} 54. Ke3 {[%clk 0:00:11]}  Kc5 {[%clk 0:00:08]} 55. Kd3 {[%clk 0:00:12]}  Kb4 {[%clk 0:00:08]} 56. Rb7+ {[%clk 0:00:12]}  Ka3 {[%clk 0:00:05]} 57. Kc3 {[%clk 0:00:12]}  h6 {[%clk 0:00:05]} 58. Rb6 {[%clk 0:00:12]}  Bd1 {[%clk 0:00:02]} 59. h3 {[%clk 0:00:10]}  f5 {[%clk 0:00:01]} 60. Rxg6 {[%clk 0:00:10]}  fxg4 {[%clk 0:00:01]} 61. hxg4 {[%clk 0:00:11]}  Ka2 {[%clk 0:00:01]} 62. Kb4 {[%clk 0:00:10]} 1-0


[Site "https://www.chess.com"]

[Event "Titled Tuesday Blitz July 26 Early 2022"]
[White "Golubev, Mikhail"]
[Black "Guimaraes, Wagner Peixoto"]
[WhiteFideId "14100983"]
[BlackFideId "2100940"]
[WhiteElo "2374"]
[BlackElo "2231"]
[Result "0-1"]
[Round "10"]
[TimeControl "180+1"]
[Date "2022.07.27"]
[WhiteClock "0:00:02"]
[BlackClock "0:00:06"]

1. d4 {[%clk 0:03:00]}  Nf6 {[%clk 0:02:57]} 2. c4 {[%clk 0:02:59]}  c5 {[%clk 0:02:56]} 3. Nf3 {[%clk 0:02:55]}  cxd4 {[%clk 0:02:56]} 4. Nxd4 {[%clk 0:02:56]}  e5 {[%clk 0:02:56]} 5. Nb5 {[%clk 0:02:56]}  d5 {[%clk 0:02:56]} 6. cxd5 {[%clk 0:02:56]}  Bc5 {[%clk 0:02:56]} 7. N5c3 {[%clk 0:02:53]}  O-O {[%clk 0:02:51]} 8. g3 {[%clk 0:02:47]}  Qe7 {[%clk 0:02:40]} 9. Bg2 {[%clk 0:02:45]}  e4 {[%clk 0:02:39]} 10. O-O {[%clk 0:02:36]}  h6 {[%clk 0:02:35]} 11. Bf4 {[%clk 0:01:51]}  Bf5 {[%clk 0:02:21]} 12. Nd2 {[%clk 0:01:26]}  Re8 {[%clk 0:01:23]} 13. Nc4 {[%clk 0:01:22]}  a6 {[%clk 0:01:09]} 14. a4 {[%clk 0:00:46]}  Nbd7 {[%clk 0:01:03]} 15. Rc1 {[%clk 0:00:46]}  Bh7 {[%clk 0:00:50]} 16. Qd2 {[%clk 0:00:46]}  Ng4 {[%clk 0:00:37]} 17. h3 {[%clk 0:00:28]}  Nxf2 {[%clk 0:00:31]} 18. Rxf2 {[%clk 0:00:28]}  Bxf2+ {[%clk 0:00:32]} 19. Kxf2 {[%clk 0:00:28]}  Nc5 {[%clk 0:00:32]} 20. Be3 {[%clk 0:00:25]}  Nb3 {[%clk 0:00:31]} 21. Qd1 {[%clk 0:00:24]}  Nxc1 {[%clk 0:00:31]} 22. Bxc1 {[%clk 0:00:20]}  Rac8 {[%clk 0:00:28]} 23. Ne3 {[%clk 0:00:20]}  Qf6+ {[%clk 0:00:25]} 24. Kg1 {[%clk 0:00:19]}  Qe5 {[%clk 0:00:17]} 25. Qe1 {[%clk 0:00:19]}  Red8 {[%clk 0:00:14]} 26. Kh2 {[%clk 0:00:18]}  f5 {[%clk 0:00:14]} 27. Qf2 {[%clk 0:00:16]}  g5 {[%clk 0:00:12]} 28. Nf1 {[%clk 0:00:13]}  Rf8 {[%clk 0:00:11]} 29. Be3 {[%clk 0:00:09]}  f4 {[%clk 0:00:09]} 30. gxf4 {[%clk 0:00:09]}  gxf4 {[%clk 0:00:09]} 31. Bd4 {[%clk 0:00:10]}  Qg5 {[%clk 0:00:07]} 32. e3 {[%clk 0:00:08]}  f3 {[%clk 0:00:06]} 33. Bh1 {[%clk 0:00:08]}  Rf7 {[%clk 0:00:05]} 34. Qg3 {[%clk 0:00:08]}  Rd8 {[%clk 0:00:04]} 35. Qxg5+ {[%clk 0:00:07]}  hxg5 {[%clk 0:00:04]} 36. Ng3 {[%clk 0:00:06]}  Bg6 {[%clk 0:00:04]} 37. Kg1 {[%clk 0:00:05]}  Re7 {[%clk 0:00:04]} 38. Kf2 {[%clk 0:00:05]}  Rde8 {[%clk 0:00:04]} 39. Bf6 {[%clk 0:00:04]}  Rc7 {[%clk 0:00:02]} 40. Bxg5 {[%clk 0:00:04]}  Rc4 {[%clk 0:00:03]} 41. Bf4 {[%clk 0:00:03]}  Rf8 {[%clk 0:00:03]} 42. h4 {[%clk 0:00:03]}  Rb4 {[%clk 0:00:03]} 43. h5 {[%clk 0:00:04]}  Rxb2+ {[%clk 0:00:04]} 44. Ke1 {[%clk 0:00:03]}  Bh7 {[%clk 0:00:05]} 45. h6 {[%clk 0:00:02]}  Rc8 {[%clk 0:00:06]} 0-1


[Site "https://www.chess.com"]

[Event "Titled Tuesday Blitz July 26 Early 2022"]
[White "Gunina, Valentina"]
[Black "Hansen, Eric"]
[WhiteFideId "4167570"]
[BlackFideId "2606771"]
[WhiteElo "2386"]
[BlackElo "2568"]
[Result "0-1"]
[Round "10"]
[TimeControl "180+1"]
[Date "2022.07.26"]
[WhiteClock "0:00:01"]
[BlackClock "0:00:05"]

1. d4 {[%clk 0:03:00]}  Nf6 {[%clk 0:02:55]} 2. c4 {[%clk 0:03:01]}  e6 {[%clk 0:02:55]} 3. Nf3 {[%clk 0:03:01]}  b6 {[%clk 0:02:55]} 4. g3 {[%clk 0:03:01]}  Ba6 {[%clk 0:02:54]} 5. b3 {[%clk 0:03:01]}  c6 {[%clk 0:02:53]} 6. Bg2 {[%clk 0:02:52]}  d5 {[%clk 0:02:54]} 7. Nbd2 {[%clk 0:02:44]}  Bb4 {[%clk 0:02:46]} 8. O-O {[%clk 0:02:42]}  O-O {[%clk 0:02:45]} 9. Ne5 {[%clk 0:02:37]}  Bc3 {[%clk 0:02:37]} 10. Ba3 {[%clk 0:02:22]}  Bxa1 {[%clk 0:02:30]} 11. Qxa1 {[%clk 0:02:22]}  Re8 {[%clk 0:02:19]} 12. e4 {[%clk 0:02:22]}  Bb7 {[%clk 0:01:44]} 13. f4 {[%clk 0:01:45]}  Nbd7 {[%clk 0:01:26]} 14. Nxd7 {[%clk 0:01:44]}  Nxd7 {[%clk 0:01:26]} 15. e5 {[%clk 0:01:45]}  c5 {[%clk 0:01:24]} 16. f5 {[%clk 0:01:37]}  cxd4 {[%clk 0:01:23]} 17. Qxd4 {[%clk 0:01:35]}  Nc5 {[%clk 0:01:10]} 18. f6 {[%clk 0:01:35]}  dxc4 {[%clk 0:01:10]} 19. Qg4 {[%clk 0:01:31]}  g6 {[%clk 0:01:09]} 20. Qf4 {[%clk 0:01:13]}  Kh8 {[%clk 0:01:01]} 21. Bxc5 {[%clk 0:00:55]}  Bxg2 {[%clk 0:00:54]} 22. Bd6 {[%clk 0:00:54]}  c3 {[%clk 0:00:40]} 23. Kxg2 {[%clk 0:00:22]}  cxd2 {[%clk 0:00:40]} 24. Qxd2 {[%clk 0:00:22]}  g5 {[%clk 0:00:34]} 25. Qxg5 {[%clk 0:00:21]}  Rg8 {[%clk 0:00:35]} 26. Qh5 {[%clk 0:00:20]}  Qd7 {[%clk 0:00:34]} 27. Rf4 {[%clk 0:00:20]}  Rg6 {[%clk 0:00:28]} 28. Rh4 {[%clk 0:00:18]}  h6 {[%clk 0:00:28]} 29. Kh3 {[%clk 0:00:15]}  Qc6 {[%clk 0:00:22]} 30. Qe2 {[%clk 0:00:14]}  Rag8 {[%clk 0:00:19]} 31. Rc4 {[%clk 0:00:13]}  Qh1 {[%clk 0:00:17]} 32. Rc3 {[%clk 0:00:12]}  Kh7 {[%clk 0:00:14]} 33. Qc2 {[%clk 0:00:10]}  Qf1+ {[%clk 0:00:13]} 34. Kh4 {[%clk 0:00:07]}  Kh8 {[%clk 0:00:13]} 35. Rc4 {[%clk 0:00:06]}  Qg1 {[%clk 0:00:07]} 36. Qd2 {[%clk 0:00:01]}  Qf1 {[%clk 0:00:05]} 0-1


[Site "https://www.chess.com"]

[Event "Titled Tuesday Blitz July 26 Early 2022"]
[White "Harsh Suresh"]
[Black "Xu, Yi"]
[WhiteFideId "45018464"]
[BlackFideId "8605564"]
[WhiteElo "2059"]
[BlackElo "2471"]
[Result "1/2-1/2"]
[Round "10"]
[TimeControl "180+1"]
[Date "2022.07.26"]
[WhiteClock "0:00:12"]
[BlackClock "0:00:09"]

1. d4 {[%clk 0:03:00]}  Nf6 {[%clk 0:02:59]} 2. Nf3 {[%clk 0:02:59]}  d5 {[%clk 0:02:59]} 3. Bf4 {[%clk 0:02:59]}  c5 {[%clk 0:02:54]} 4. c3 {[%clk 0:02:59]}  Nc6 {[%clk 0:02:52]} 5. e3 {[%clk 0:02:58]}  Qb6 {[%clk 0:02:51]} 6. Qc2 {[%clk 0:02:56]}  g6 {[%clk 0:02:50]} 7. Nbd2 {[%clk 0:02:50]}  Bf5 {[%clk 0:02:50]} 8. dxc5 {[%clk 0:02:50]}  Qxc5 {[%clk 0:02:49]} 9. Nb3 {[%clk 0:02:50]}  Qxe3+ {[%clk 0:02:41]} 10. Bxe3 {[%clk 0:02:49]}  Bxc2 {[%clk 0:02:42]} 11. Nc5 {[%clk 0:02:49]}  Bg7 {[%clk 0:02:27]} 12. Nxb7 {[%clk 0:02:45]}  O-O {[%clk 0:02:27]} 13. Bb5 {[%clk 0:02:44]}  Rfc8 {[%clk 0:02:20]} 14. Bxc6 {[%clk 0:02:26]}  Rxc6 {[%clk 0:02:19]} 15. Nd4 {[%clk 0:02:26]}  Rc7 {[%clk 0:02:17]} 16. Nxc2 {[%clk 0:02:24]}  Rxb7 {[%clk 0:02:17]} 17. O-O-O {[%clk 0:02:25]}  a5 {[%clk 0:02:06]} 18. f3 {[%clk 0:02:14]}  e5 {[%clk 0:01:55]} 19. Bg5 {[%clk 0:01:57]}  Rab8 {[%clk 0:01:49]} 20. b3 {[%clk 0:01:54]}  a4 {[%clk 0:01:38]} 21. Nb4 {[%clk 0:01:29]}  axb3 {[%clk 0:01:36]} 22. Bxf6 {[%clk 0:01:14]}  bxa2 {[%clk 0:01:27]} 23. Nxa2 {[%clk 0:00:41]}  Bxf6 {[%clk 0:01:09]} 24. Nb4 {[%clk 0:00:40]}  d4 {[%clk 0:01:06]} 25. Nd5 {[%clk 0:00:40]}  Bg5+ {[%clk 0:00:58]} 26. f4 {[%clk 0:00:36]}  exf4 {[%clk 0:00:42]} 27. Kc2 {[%clk 0:00:30]}  Rb2+ {[%clk 0:00:39]} 28. Kd3 {[%clk 0:00:30]}  dxc3 {[%clk 0:00:35]} 29. Nxc3 {[%clk 0:00:25]}  Rxg2 {[%clk 0:00:35]} 30. Rhg1 {[%clk 0:00:22]}  Rxg1 {[%clk 0:00:31]} 31. Rxg1 {[%clk 0:00:22]}  Bh6 {[%clk 0:00:27]} 32. Nd5 {[%clk 0:00:21]}  Rd8 {[%clk 0:00:26]} 33. Ke4 {[%clk 0:00:21]}  Kg7 {[%clk 0:00:27]} 34. h4 {[%clk 0:00:19]}  Re8+ {[%clk 0:00:26]} 35. Kf3 {[%clk 0:00:18]}  Re5 {[%clk 0:00:27]} 36. Rd1 {[%clk 0:00:16]}  Rh5 {[%clk 0:00:22]} 37. Kg4 {[%clk 0:00:16]}  f5+ {[%clk 0:00:21]} 38. Kh3 {[%clk 0:00:16]}  g5 {[%clk 0:00:21]} 39. Kg2 {[%clk 0:00:16]}  Rxh4 {[%clk 0:00:20]} 40. Ne7 {[%clk 0:00:16]}  f3+ {[%clk 0:00:16]} 41. Kxf3 {[%clk 0:00:15]}  Rf4+ {[%clk 0:00:15]} 42. Kg2 {[%clk 0:00:15]}  Kf7 {[%clk 0:00:14]} 43. Rd7 {[%clk 0:00:13]}  Bf8 {[%clk 0:00:08]} 44. Nc6+ {[%clk 0:00:10]}  Ke6 {[%clk 0:00:06]} 45. Rxh7 {[%clk 0:00:10]}  Rc4 {[%clk 0:00:05]} 46. Nd8+ {[%clk 0:00:09]}  Ke5 {[%clk 0:00:04]} 47. Kf3 {[%clk 0:00:06]}  Rc3+ {[%clk 0:00:05]} 48. Ke2 {[%clk 0:00:06]}  Bc5 {[%clk 0:00:05]} 49. Rc7 {[%clk 0:00:05]}  Bd4 {[%clk 0:00:03]} 50. Nc6+ {[%clk 0:00:05]}  Kf4 {[%clk 0:00:02]} 51. Nxd4 {[%clk 0:00:04]}  Rxc7 {[%clk 0:00:02]} 52. Ne6+ {[%clk 0:00:05]}  Kg3 {[%clk 0:00:03]} 53. Nxc7 {[%clk 0:00:06]}  f4 {[%clk 0:00:03]} 54. Ne6 {[%clk 0:00:05]}  f3+ {[%clk 0:00:02]} 55. Kf1 {[%clk 0:00:04]}  g4 {[%clk 0:00:03]} 56. Ng7 {[%clk 0:00:02]}  Kh2 {[%clk 0:00:03]} 57. Nf5 {[%clk 0:00:01]}  Kh3 {[%clk 0:00:01]} 58. Kf2 {[%clk 0:00:01]}  Kh2 {[%clk 0:00:02]} 59. Ng3 {[%clk 0:00:02]}  Kh3 {[%clk 0:00:02]} 60. Ne4 {[%clk 0:00:03]}  Kh4 {[%clk 0:00:02]} 61. Ng3 {[%clk 0:00:04]}  Kg5 {[%clk 0:00:03]} 62. Nh1 {[%clk 0:00:04]}  Kf4 {[%clk 0:00:04]} 63. Ng3 {[%clk 0:00:05]}  Ke5 {[%clk 0:00:04]} 64. Nh1 {[%clk 0:00:05]}  Kd4 {[%clk 0:00:05]} 65. Ng3 {[%clk 0:00:06]}  Ke5 {[%clk 0:00:05]} 66. Nf1 {[%clk 0:00:07]}  Kf5 {[%clk 0:00:06]} 67. Ng3+ {[%clk 0:00:08]}  Kf4 {[%clk 0:00:07]} 68. Nf1 {[%clk 0:00:09]}  g3+ {[%clk 0:00:07]} 69. Nxg3 {[%clk 0:00:10]}  Kg4 {[%clk 0:00:07]} 70. Nf1 {[%clk 0:00:10]}  Kf4 {[%clk 0:00:08]} 71. Nd2 {[%clk 0:00:11]}  Ke5 {[%clk 0:00:09]} 72. Nxf3+ {[%clk 0:00:12]} 1/2-1/2


[Site "https://www.chess.com"]